fUSD/lending_fUSD_20260309
["ID","MTS","AMOUNT","RATE_DAILY","PERIOD"]
[408052443,1773073842220,-500.0,0.00019783,2]
[408052444,1773073842229,-1080.0,0.00019783,2]
[408052445,1773073842239,-250.0,0.00019783,2]
[408052446,1773073842248,-2156.75129119,0.00019789,2]
[408052447,1773073842258,-77751.2367,0.000198,2]
[408052448,1773073842267,-173.847,0.000198,2]
[408052449,1773073842277,-2000.0,0.000198,2]
[408052450,1773073842286,-2000.0,0.000198,2]
[408052451,1773073842296,-168.17665537,0.000198,2]
[408052452,1773073842305,-667.13,0.000198,2]
[408052453,1773073842314,-250.0,0.000198,2]
[408052454,1773073842323,-2156.75129119,0.00019811,2]
[408052455,1773073842332,-168.17665534,0.00019814,2]
[408052456,1773073842341,-380.3,0.00019821,2]
[408052457,1773073842351,-3205.449,0.00019823,2]
[408052458,1773073842360,-152.0,0.00019823,3]
[408052459,1773073842369,-250.0,0.00019826,2]
[408052460,1773073842379,-168.17665534,0.00019829,2]
[408052461,1773073842389,-2156.75129119,0.00019833,2]
[408052462,1773073842398,-1281.94636617,0.00019836,2]
[408052463,1773073842408,-179.0,0.00019836,2]
[408052464,1773073842421,-500.0,0.00019837,2]
[408052465,1773073842430,-757.0,0.00019837,2]
[408052466,1773073842439,-796.0,0.00019837,2]
[408052467,1773073842449,-527.0,0.00019837,2]
[408052468,1773073842459,-500.0,0.00019837,2]
[408052469,1773073842469,-500.0,0.00019837,2]
[408052470,1773073842478,-1080.0,0.00019837,2]
[408052471,1773073842488,-168.17665534,0.00019843,2]
[408052472,1773073842497,-2156.75129119,0.00019856,2]
[408052473,1773073842507,-168.17665534,0.00019857,2]
[408052475,1773073842516,-380.3,0.00019866,2]
[408052476,1773073842525,-168.17665534,0.00019871,2]
[408052478,1773073842535,-250.0,0.00019874,2]
[408052479,1773073842544,-2156.75129119,0.00019878,2]
[408052481,1773073842555,-168.17665534,0.00019886,2]
[408052482,1773073842564,-150.0,0.00019892,2]
[408052484,1773073842573,-757.0,0.00019892,2]
[408052485,1773073842582,-796.0,0.00019892,2]
[408052486,1773073842593,-527.0,0.00019892,2]
[408052487,1773073842602,-500.0,0.00019892,2]
[408052488,1773073842611,-500.0,0.00019892,2]
[408052489,1773073842620,-1080.0,0.00019892,2]
[408052490,1773073842630,-151.0,0.00019896,2]
[408052491,1773073842639,-223.55,0.00019896,2]
[408052492,1773073842648,-500.0,0.00019899,2]
[408052493,1773073842657,-3584.43263132,0.00019899,2]
[408052494,1773073842667,-2851.71,0.00019899,2]
[408052495,1773073842677,-3749.46,0.00019899,2]
[408052496,1773073842686,-3584.43263124,0.00019899,2]
[408052497,1773073842695,-3584.43263124,0.00019899,2]
[408052498,1773073842704,-3584.43263124,0.00019899,2]
[408052499,1773073842713,-3584.43263124,0.00019899,2]
[408052500,1773073842723,-3584.43263124,0.000199,2]
[408052501,1773073842732,-3584.43263124,0.000199,2]
[408052502,1773073842741,-3584.43263124,0.000199,2]
[408052503,1773073842750,-3584.43263124,0.000199,2]
[408052504,1773073842760,-2523.05736046,0.000199,2]
[408052505,1773073842770,-17973.465,0.000199,2]
[408052506,1773073842779,-1000.0,0.000199,2]
[408052507,1773073842789,-26059.6787,0.000199,2]
[408052508,1773073842798,-935.13255853,0.000199,2]
[408052509,1773073842807,-250.0,0.000199,2]
[408052510,1773073842816,-2156.75129119,0.000199,2]
[408052511,1773073842826,-3584.43263124,0.000199,2]
[408052512,1773073842835,-689.46764915,0.000199,2]
[408052513,1773073842844,-2024.0,0.000199,2]
[408052514,1773073842853,-168.17665534,0.000199,2]
[408052515,1773073842863,-13910.98046034,0.000199,2]
[408052516,1773073842872,-380.3,0.0001991,2]
[408052517,1773073842881,-1000.0,0.00019914,2]
[408052518,1773073842891,-187.78006525,0.00019914,2]
[408052519,1773073842900,-823.49645485,0.00019914,2]
[408052520,1773073842909,-250.0,0.0001993,2]
[408052521,1773073842919,-757.0,0.00019947,2]
[408052522,1773073842928,-796.0,0.00019947,2]
[408052523,1773073842937,-527.0,0.00019947,2]
[408052524,1773073842946,-500.0,0.00019947,2]
[408052525,1773073842955,-500.0,0.00019947,2]
[408052526,1773073842964,-1080.0,0.00019947,2]
[408052527,1773073842973,-250.0,0.00019947,2]
[408052528,1773073842982,-150.0,0.00019952,3]
[408052529,1773073842991,-380.3,0.00019955,2]
[408052530,1773073843000,-150.571,0.00019963,2]
[408052531,1773073843009,-922.0,0.00019963,2]
[408052532,1773073843018,-1213.0,0.00019963,2]
[408052533,1773073843028,-3309.18,0.00019963,2]
[408052534,1773073843037,-619.0,0.00019963,2]
[408052535,1773073843046,-1042.0,0.00019963,2]
[408052536,1773073843055,-153.45374546,0.00019971,2]
[408052537,1773073843064,-250.0,0.00019979,2]
[408052538,1773073843073,-185.52323359,0.00019997,2]
[408052539,1773073843082,-300.0,0.00019999,2]
[408052540,1773073843091,-300.0,0.00019999,2]
[408052541,1773073843101,-300.0,0.00019999,2]
[408052542,1773073843110,-25546.0199521,0.00019999,2]
[408052543,1773073843119,-514.81342724,0.00019999,2]
[408052544,1773073843128,-236576.7416123,0.00019999,2]
[408052545,1773073843137,-500.0,0.00019999,2]
[408052546,1773073843146,-500.0,0.00019999,2]
[408052547,1773073843155,-500.0,0.00019999,2]
[408052548,1773073843165,-10268.8863794,0.00019999,2]
[408052549,1773073843174,-500.0,0.00019999,2]
[408052550,1773073843183,-500.0,0.00019999,2]
[408052551,1773073843193,-4747.6620129,0.00019999,2]
[408052552,1773073843202,-500.0,0.00019999,2]
[408052553,1773073843211,-3398.2337345,0.00019999,2]
[408052554,1773073843221,-607.78,0.00019999,2]
[408052555,1773073843231,-607.78,0.00019999,2]
[408052556,1773073843240,-607.78,0.00019999,2]
[408052557,1773073843249,-607.78,0.00019999,2]
[408052558,1773073843258,-607.78,0.00019999,2]
[408052559,1773073843267,-607.78,0.00019999,2]
[408052560,1773073843277,-607.78,0.00019999,2]
[408052561,1773073843285,-607.78,0.00019999,2]
[408052562,1773073843301,-607.78,0.00019999,2]
[408052563,1773073843314,-607.78,0.00019999,2]
[408052565,1773073843323,-607.78,0.00019999,2]
[408052567,1773073843333,-607.78,0.00019999,2]
[408052568,1773073843342,-607.78,0.00019999,2]
[408052569,1773073843351,-607.78,0.00019999,2]
[408052570,1773073843360,-607.78,0.00019999,2]
[408052571,1773073843369,-607.78,0.00019999,2]
[408052572,1773073843378,-607.78,0.00019999,2]
[408052573,1773073843387,-607.78,0.00019999,2]
[408052574,1773073843397,-607.78,0.00019999,2]
[408052575,1773073843406,-607.78,0.00019999,2]
[408052576,1773073843415,-607.78,0.00019999,2]
[408052577,1773073843428,-607.78,0.00019999,2]
[408052578,1773073843438,-607.78,0.00019999,2]
[408052579,1773073843449,-607.95460695,0.00019999,2]
[408052580,1773073843459,-1471.864922,0.00019999,2]
[408052581,1773073843469,-151.0,0.00019999,2]
[408052582,1773073843479,-261.019744,0.00019999,2]
[408052583,1773073843489,-500.0,0.00019999,2]
[408052584,1773073843500,-355.79104099,0.00019999,2]
[408052585,1773073843511,-187.11525039,0.00019999,2]
[408052586,1773073843520,-348.36822526,0.00019999,2]
[408052587,1773073843532,-2113.0,0.0002,2]
[408052588,1773073843541,-229546.28524526,0.0002,2]
[408052589,1773073843617,-4565.09014242,0.0002,2]
[408052590,1773073843629,-4962.14085552,0.0002,2]
[408052592,1773073843910,-8352.0,0.0002,2]
[408052594,1773073843921,-858.87950471,0.0002,2]
[408052596,1773073843933,-480773.28120485,0.0002,2]
[408052598,1773073843942,-1579.16,0.0002,2]
[408052600,1773073843952,-150.0,0.0002,2]
[408052601,1773073843962,-150.0,0.0002,2]
[408052602,1773073843971,-209.56,0.0002,2]
[408052603,1773073843980,-364499.48295496,0.0002,2]
[408052604,1773073843991,-6750.00013924,0.0002,2]
[408052605,1773073844003,-1849.02295019,0.0002,2]
[408052608,1773073845663,-310.25882034,0.0002,2]
[408052609,1773073845674,-1239.0,0.0002,2]
[408052611,1773073845699,-4355.34662415,0.0002,2]
[408052612,1773073845814,-92499.60867266,0.0002,2]
[408052619,1773073934065,184.34742745,0.000167,2]
[408052620,1773074010513,150.0,0.00019718,120]
[408052621,1773074050628,200.0,0.00016511,2]
[408052623,1773074413272,152.0,0.0001669,3]
[408052624,1773074414098,1606.89,0.00015552,2]
[408052633,1773075031783,-156.06927981,0.00017,2]
[408052634,1773075031793,-143.93072019,0.00017,2]
[408052635,1773075031805,-362.06927981,0.00017,2]
[408052636,1773075031815,-421.65278046,0.0001705,2]
[408052637,1773075031825,-2228.48997992,0.000172,3]
[408052638,1773075031840,-166.66,0.00017714,2]
[408052639,1773075031850,-152.0,0.00017735,4]
[408052640,1773075031859,-166.66,0.00018087,2]
[408052641,1773075031870,-559.17,0.00018264,2]
[408052642,1773075031881,-165.76,0.00018284,2]
[408052643,1773075031891,-183.71,0.00018314,3]
[408052644,1773075031901,-500.0,0.00018333,2]
[408052645,1773075031910,-2000.0,0.00018334,2]
[408052646,1773075031920,-300.0,0.00018342,2]
[408052647,1773075031930,-300.0,0.00018342,2]
[408052648,1773075031940,-151.0,0.00018343,2]
[408052649,1773075031949,-41.51129899,0.00018343,2]
[408052650,1773075031965,-109.48870101,0.00018343,2]
[408052651,1773075031974,-151.0,0.00018343,2]
[408052652,1773075031984,-151.0,0.00018343,2]
[408052653,1773075031993,-151.0,0.00018343,2]
[408052654,1773075032003,-151.0,0.00018343,2]
[408052656,1773075032012,-151.0,0.00018343,2]
[408052658,1773075032021,-151.0,0.00018343,2]
[408052660,1773075032030,-1737.3900263,0.00018354,2]
[408052663,1773075032050,-2369.22227224,0.00018354,2]
[408052666,1773075032062,-626.10704283,0.00018354,2]
[408052668,1773075032073,-303.57427254,0.00018354,2]
[408052700,1773075037832,-943.95867498,0.00018354,2]
[408052701,1773075037843,-903.93718342,0.00018354,2]
[408052702,1773075037880,-3875.87052769,0.00018354,2]
[408052703,1773075037890,-500.0,0.00018356,7]
[408052704,1773075037900,-500.0,0.00018356,7]
[408052705,1773075037910,-600.0,0.00018356,7]
[408052706,1773075037919,-176.68220354,0.00018447,2]
[408052707,1773075037929,-166.66,0.0001846,2]
[408052708,1773075037938,-500.0,0.00018535,2]
[408052709,1773075037948,-500.0,0.00018535,2]
[408052710,1773075037957,-514.81342724,0.00018535,2]
[408052711,1773075037967,-3955.2,0.00018547,2]
[408052712,1773075037976,-1852.42,0.00018696,2]
[408052713,1773075037986,-2500.0,0.000187,2]
[408052714,1773075037995,-506.0,0.00018703,3]
[408052715,1773075038005,-1282.15,0.00018778,2]
[408052716,1773075038014,-152.0,0.00018779,5]
[408052717,1773075038024,-4408.54644215,0.00018811,4]
[408052718,1773075038034,-200.0,0.00018829,2]
[408052719,1773075038044,-166.66,0.00018833,2]
[408052720,1773075038053,-9564.11,0.00018857,2]
[408052721,1773075038063,-1044.11,0.00018923,2]
[408052722,1773075038072,-166.66,0.00018947,2]
[408052723,1773075038081,-1000.0,0.00018973,2]
[408052724,1773075038091,-174.61919141,0.00018973,2]
[408052725,1773075038100,-823.49645485,0.00018973,2]
[408052726,1773075038110,-334.65990625,0.00018973,2]
[408052727,1773075038119,-184.34059667,0.00019014,2]
[408052728,1773075038128,-779.41,0.00019178,2]
[408052729,1773075038138,-1000.0,0.00019178,2]
[408052731,1773075038148,-184.34059667,0.00019205,2]
[408052732,1773075038158,-166.66,0.00019206,2]
[408052733,1773075038171,-26059.6787,0.00019241,2]
[408052734,1773075038181,-4136.9726,0.00019252,2]
[408052735,1773075038191,-500.0,0.00019315,2]
[408052736,1773075038201,-184.34059667,0.00019425,2]
[408052737,1773075038211,-600.0,0.00019452,7]
[408052738,1773075038221,-1000.0,0.00019452,2]
[408052739,1773075038230,-168.0,0.00019509,2]
[408052740,1773075038239,-350.36875678,0.00019521,2]
[408052741,1773075038252,-428.59930365,0.00019521,2]
[408052742,1773075038279,-221.03193957,0.00019521,2]
[408052743,1773075038288,-181.08010149,0.00019521,2]
[408052744,1773075038297,-166.66,0.00019579,2]
[408052745,1773075038307,-391.40861234,0.000196,2]
[408052746,1773075038317,-151.0,0.00019604,2]
[408052747,1773075038326,-138.8193466,0.00019616,2]
[408052748,1773075038338,-45.52125007,0.00019616,2]
[408052749,1773075038347,-168.0,0.00019624,2]
[408052750,1773075038356,-1578.98284232,0.00019626,2]
[408052751,1773075038365,-172.87392778,0.0001964,2]
[408052752,1773075038375,-151.0,0.00019648,2]
[408052753,1773075038385,-1578.98284223,0.00019656,2]
[408052754,1773075038395,-366.0,0.0001967,5]
[408052755,1773075038404,-150.0,0.00019673,2]
[408052756,1773075038414,-150.0,0.00019673,2]
[408052757,1773075038424,-150.0,0.00019673,2]
[408052758,1773075038433,-150.0,0.00019673,2]
[408052759,1773075038442,-218.63,0.00019673,2]
[408052760,1773075038452,-599.0,0.00019673,2]
[408052761,1773075038461,-500.0,0.00019673,2]
[408052762,1773075038470,-500.0,0.00019673,2]
[408052763,1773075038479,-851.0,0.00019673,2]
[408052764,1773075038488,-521.0,0.00019673,2]
[408052765,1773075038497,-500.0,0.00019673,2]
[408052766,1773075038506,-150.0,0.00019673,2]
[408052767,1773075038515,-150.0,0.00019673,2]
[408052768,1773075038524,-500.0,0.00019673,2]
[408052769,1773075038534,-500.0,0.00019673,2]
[408052770,1773075038543,-500.0,0.00019673,2]
[408052771,1773075038552,-150.10489082,0.00019673,2]
[408052772,1773075038561,-150.0,0.00019673,2]
[408052773,1773075038570,-500.0,0.00019673,2]
[408052774,1773075038579,-500.0,0.00019673,2]
[408052775,1773075038588,-500.0,0.00019673,2]
[408052776,1773075038597,-150.0,0.00019673,2]
[408052777,1773075038606,-150.0,0.00019673,2]
[408052778,1773075038615,-150.0,0.00019673,2]
[408052779,1773075038624,-504.0,0.00019673,2]
[408052780,1773075038634,-500.0,0.00019673,2]
[408052781,1773075038643,-150.0,0.00019673,2]
[408052782,1773075038652,-500.0,0.00019673,2]
[408052783,1773075038661,-150.0,0.00019673,2]
[408052784,1773075038670,-1089.0,0.00019673,2]
[408052785,1773075038680,-500.0,0.00019673,2]
[408052786,1773075038689,-2500.0,0.00019682,2]
[408052787,1773075038698,-1578.98284223,0.00019687,2]
[408052788,1773075038708,-151.0,0.00019692,2]
[408052789,1773075038717,-545.16466548,0.000197,2]
[408052790,1773075038727,-2000.0,0.000197,2]
[408052791,1773075038736,-1578.98284223,0.00019717,2]
[408052792,1773075038746,-10932.22397442,0.00019726,2]
[408052793,1773075038761,-308.5174995,0.00019726,2]
[408052797,1773075040030,-850.0,0.00019726,2]
[408052798,1773075040139,-1902.07,0.00019726,2]
[408052799,1773075040151,-3903.12784696,0.00019726,2]
[408052800,1773075040162,-6633.13592568,0.00019726,2]
[408052801,1773075040349,-892.18335078,0.00019726,2]
[408052802,1773075040360,-912.1691328,0.00019726,2]
[408052803,1773075040406,-6594.21856986,0.00019726,2]
[408052804,1773075040416,-1000.0,0.00019726,2]
[408052805,1773075040425,-1000.0,0.00019726,2]
[408052806,1773075040435,-201.82767376,0.00019728,2]
[408052807,1773075040445,-150.0,0.00019728,2]
[408052808,1773075040456,-232.79888752,0.00019728,2]
[408052809,1773075040466,-150.0,0.00019728,2]
[408052810,1773075040476,-599.0,0.00019728,2]
[408052811,1773075040485,-500.0,0.00019728,2]
[408052812,1773075040494,-500.0,0.00019728,2]
[408052813,1773075040505,-851.0,0.00019728,2]
[408052814,1773075040516,-500.0,0.00019728,2]
[408052815,1773075040526,-521.0,0.00019728,2]
[408052816,1773075040537,-150.0,0.00019728,2]
[408052817,1773075040547,-150.0,0.00019728,2]
[408052818,1773075040556,-500.0,0.00019728,2]
[408052819,1773075040566,-500.0,0.00019728,2]
[408052820,1773075040575,-500.0,0.00019728,2]
[408052821,1773075040585,-150.0,0.00019728,2]
[408052822,1773075040594,-500.0,0.00019728,2]
[408052823,1773075040603,-500.0,0.00019728,2]
[408052824,1773075040613,-500.0,0.00019728,2]
[408052826,1773075040623,-504.0,0.00019728,2]
[408052828,1773075040634,-500.0,0.00019728,2]
[408052830,1773075040643,-150.0,0.00019728,2]
[408052832,1773075040652,-500.0,0.00019728,2]
[408052834,1773075040662,-150.0,0.00019728,2]
[408052836,1773075040672,-1089.0,0.00019728,2]
[408052838,1773075040681,-500.0,0.00019728,2]
[408052840,1773075040691,-545.16466541,0.00019729,2]
[408052842,1773075040700,-151.0,0.00019736,2]
[408052844,1773075040709,-1578.98284223,0.00019748,2]
[408052846,1773075040719,-545.16466541,0.00019757,2]
[408052848,1773075040728,-1578.98284223,0.00019778,2]
[408052849,1773075040738,-151.0,0.0001978,2]
[408052850,1773075040747,-500.0,0.00019782,2]
[408052851,1773075040760,-500.0,0.00019782,2]
[408052852,1773075040770,-500.0,0.00019782,2]
[408052853,1773075040779,-500.0,0.00019782,2]
[408052854,1773075040789,-500.0,0.00019782,2]
[408052855,1773075040801,-500.0,0.00019782,2]
[408052856,1773075040810,-500.0,0.00019782,2]
[408052857,1773075040819,-500.0,0.00019782,2]
[408052858,1773075040829,-500.0,0.00019782,2]
[408052859,1773075040840,-500.0,0.00019782,2]
[408052860,1773075040849,-500.0,0.00019782,2]
[408052861,1773075040859,-500.0,0.00019782,2]
[408052862,1773075040868,-500.0,0.00019782,2]
[408052863,1773075040877,-500.0,0.00019782,2]
[408052864,1773075040887,-500.0,0.00019782,2]
[408052865,1773075040897,-500.0,0.00019782,2]
[408052866,1773075040906,-161.98540494,0.00019782,2]
[408052867,1773075040915,-500.0,0.00019782,2]
[408052868,1773075040924,-500.0,0.00019782,2]
[408052869,1773075040934,-500.0,0.00019782,2]
[408052870,1773075040944,-500.0,0.00019782,2]
[408052871,1773075040953,-500.0,0.00019782,2]
[408052872,1773075040962,-500.0,0.00019782,2]
[408052873,1773075040971,-500.0,0.00019782,2]
[408052874,1773075040981,-500.0,0.00019782,2]
[408052875,1773075040990,-150.0,0.00019783,2]
[408052876,1773075041000,-599.0,0.00019783,2]
[408052877,1773075041011,-500.0,0.00019783,2]
[408052878,1773075041020,-500.0,0.00019783,2]
[408052879,1773075041030,-851.0,0.00019783,2]
[408052880,1773075041040,-500.0,0.00019783,2]
[408052881,1773075041049,-200.0,0.00019783,2]
[408052882,1773075041059,-521.0,0.00019783,2]
[408052883,1773075041069,-200.0,0.00019783,2]
[408052884,1773075041311,-500.0,0.00019783,2]
[408052885,1773075041344,-500.0,0.00019783,2]
[408052886,1773075041355,-500.0,0.00019783,2]
[408052887,1773075041365,-150.0,0.00019783,2]
[408052888,1773075041375,-500.0,0.00019783,2]
[408052889,1773075041384,-500.0,0.00019783,2]
[408052890,1773075041394,-500.0,0.00019783,2]
[408052891,1773075041403,-504.0,0.00019783,2]
[408052892,1773075041412,-500.0,0.00019783,2]
[408052893,1773075041421,-150.0,0.00019783,2]
[408052894,1773075041431,-500.0,0.00019783,2]
[408052895,1773075041440,-150.0,0.00019783,2]
[408052896,1773075041449,-1089.0,0.00019783,2]
[408052897,1773075041458,-500.0,0.00019783,2]
[408052898,1773075041467,-545.16466541,0.00019786,2]
[408052899,1773075041476,-168.0,0.00019799,2]
[408052900,1773075041486,-100019.99989986,0.000198,2]
[408052901,1773075041496,-4062.68246961,0.000198,2]
[408052902,1773075041505,-2000.0,0.000198,2]
[408052903,1773075041514,-2000.0,0.000198,2]
[408052904,1773075041523,-165.76,0.00019808,2]
[408052905,1773075041533,-1578.98284223,0.00019809,2]
[408052906,1773075041542,-4062.68246959,0.00019811,2]
[408052907,1773075041551,-545.16466541,0.00019814,2]
[408052908,1773075041560,-4062.68246959,0.00019822,2]
[408052909,1773075041571,-152.0,0.00019823,6]
[408052910,1773075041580,-151.0,0.00019824,2]
[408052911,1773075041590,-174.383,0.00019832,2]
[408052912,1773075041600,-4062.68246959,0.00019833,2]
[408052913,1773075041611,-3054.113,0.00019836,2]
[408052914,1773075041620,-150.0,0.00019837,2]
[408052915,1773075041631,-599.0,0.00019837,2]
[408052916,1773075041644,-500.0,0.00019837,2]
[408052917,1773075041653,-500.0,0.00019837,2]
[408052918,1773075041662,-851.0,0.00019837,2]
[408052919,1773075041672,-500.0,0.00019837,2]
[408052920,1773075041681,-521.0,0.00019837,2]
[408052921,1773075041690,-500.0,0.00019837,2]
[408052922,1773075041699,-500.0,0.00019837,2]
[408052923,1773075041710,-500.0,0.00019837,2]
[408052924,1773075041720,-150.0,0.00019837,2]
[408052925,1773075041729,-500.0,0.00019837,2]
[408052926,1773075041738,-350.0,0.00019837,2]
[408052927,1773075041750,-350.0,0.00019837,2]
[408052928,1773075041763,-504.0,0.00019837,2]
[408052929,1773075041774,-500.0,0.00019837,2]
[408052930,1773075041784,-253.29632904,0.00019837,2]
[408052931,1773075041794,-500.0,0.00019837,2]
[408052932,1773075041805,-250.19393605,0.00019837,2]
[408052933,1773075041814,-1089.0,0.00019837,2]
[408052934,1773075041826,-500.0,0.00019837,2]
[408052935,1773075041837,-1578.98284223,0.00019839,2]
[408052936,1773075041848,-545.16466541,0.00019843,2]
[408052937,1773075041857,-4062.68246959,0.00019844,2]
[408052938,1773075041867,-4062.68246959,0.00019856,2]
[408052939,1773075041877,-250.0,0.00019856,2]
[408052940,1773075041890,-4062.68246959,0.00019867,2]
[408052941,1773075041899,-151.0,0.00019868,2]
[408052942,1773075041909,-1578.98284223,0.0001987,2]
[408052943,1773075041918,-545.16466541,0.00019871,2]
[408052944,1773075041928,-4062.68246959,0.00019878,2]
[408052945,1773075041937,-4062.68246959,0.00019889,2]
[408052946,1773075041947,-151.0,0.00019889,2]
[408052947,1773075041956,-176.29568284,0.00019892,2]
[408052948,1773075041966,-599.0,0.00019892,2]
[408052949,1773075041975,-500.0,0.00019892,2]
[408052950,1773075041984,-500.0,0.00019892,2]
[408052951,1773075041993,-851.0,0.00019892,2]
[408052952,1773075042003,-521.0,0.00019892,2]
[408052953,1773075042013,-500.0,0.00019892,2]
[408052954,1773075042022,-186.99459924,0.00019892,2]
[408052955,1773075042031,-504.0,0.00019892,2]
[408052956,1773075042040,-194.62422301,0.00019892,2]
[408052957,1773075042050,-1089.0,0.00019892,2]
[408052958,1773075042059,-500.0,0.00019899,2]
[408052959,1773075042069,-500.0,0.00019899,2]
[408052960,1773075042078,-500.0,0.00019899,2]
[408052961,1773075042087,-500.0,0.00019899,2]
[408052962,1773075042096,-500.0,0.00019899,2]
[408052963,1773075042105,-500.0,0.00019899,2]
[408052964,1773075042114,-500.0,0.00019899,2]
[408052965,1773075042124,-607.78,0.00019899,2]
[408052966,1773075042132,-2810.77297924,0.000199,2]
[408052967,1773075042144,-100000.0,0.000199,2]
[408052968,1773075042155,-1578.98284223,0.000199,2]
[408052969,1773075042164,-5000.0,0.000199,2]
[408052970,1773075042173,-4062.68246959,0.000199,2]
[408052971,1773075042182,-250.0,0.000199,2]
[408052972,1773075042192,-435.88618444,0.000199,2]
[408052973,1773075042201,-545.16466541,0.000199,2]
[408052974,1773075042210,-189.1597078,0.000199,2]
[408052975,1773075042220,-13910.98046034,0.000199,2]
[408052976,1773075042230,-151.0,0.00019912,2]
[408052977,1773075042240,-250.0,0.00019914,2]
[408052978,1773075042249,-599.0,0.00019947,2]
[408052979,1773075042259,-500.0,0.00019947,2]
[408052980,1773075042267,-851.0,0.00019947,2]
[408052981,1773075042276,-521.0,0.00019947,2]
[408052982,1773075042285,-500.0,0.00019947,2]
[408052983,1773075042295,-504.0,0.00019947,2]
[408052984,1773075042305,-1089.0,0.00019947,2]
[408052985,1773075042314,-218.63,0.00019947,2]
[408052986,1773075042323,-1000.0,0.00019947,2]
[408052987,1773075042332,-250.0,0.00019947,2]
[408052988,1773075042341,-151.0,0.00019956,2]
[408052989,1773075042352,-179.0,0.00019957,2]
[408052990,1773075042362,-185.52323359,0.00019959,2]
[408052991,1773075042371,-578.81129143,0.0001996,2]
[408052992,1773075042381,-487.0,0.0001996,2]
[408052993,1773075042390,-706.19,0.0001996,2]
[408052994,1773075042399,-3505.0,0.00019963,2]
[408052995,1773075042408,-619.0,0.00019963,2]
[408052996,1773075042417,-1342.0,0.00019963,2]
[408052997,1773075042427,-1042.0,0.00019963,2]
[408052998,1773075042435,-163.235,0.00019963,2]
[408052999,1773075042445,-922.0,0.00019963,2]
[408053000,1773075042454,-1213.0,0.00019963,2]
[408053001,1773075042463,-1300.441,0.00019963,2]
[408053002,1773075042472,-3749.0,0.00019963,2]
[408053003,1773075042481,-3309.18,0.00019963,2]
[408053004,1773075042490,-250.0,0.00019963,2]
[408053005,1773075042501,-487.0,0.00019963,2]
[408053006,1773075042511,-487.0,0.00019963,2]
[408053007,1773075042521,-610.84,0.00019963,2]
[408053008,1773075042532,-168.0,0.00019972,2]
[408053009,1773075042542,-153.45374546,0.00019974,2]
[408053010,1773075042552,-166.66,0.00019989,2]
[408053011,1773075042562,-150.0,0.00019993,3]
[408053012,1773075042572,-500.0,0.00019998,2]
[408053013,1773075042583,-500.0,0.00019998,2]
[408053014,1773075042594,-500.0,0.00019998,2]
[408053015,1773075042604,-607.78,0.00019998,2]
[408053016,1773075042615,-300.0,0.00019999,2]
[408053017,1773075042625,-607.78,0.00019999,2]
[408053018,1773075042635,-607.78,0.00019999,2]
[408053019,1773075042644,-607.78,0.00019999,2]
[408053020,1773075042654,-607.78,0.00019999,2]
[408053021,1773075042664,-607.78,0.00019999,2]
[408053022,1773075042673,-607.78,0.00019999,2]
[408053023,1773075042683,-607.78,0.00019999,2]
[408053024,1773075042692,-607.78,0.00019999,2]
[408053025,1773075042701,-607.78,0.00019999,2]
[408053026,1773075042711,-607.78,0.00019999,2]